[Event "EIWCC 2017"]
[Site "Riga"]
[Date "2017.04.19"]
[Round "8"]
[White "Muzychuk, Mariya"]
[Black "Zawadzka, Jolanta"]
[Result "1-0"]
[ECO "C42"]
[WhiteElo "2546"]
[BlackElo "2449"]
[Annotator "TA"]
[PlyCount "116"]
[EventDate "2017.??.??"]
[EventType "swiss"]
[EventCountry "LAT"]
[SourceTitle "playchess.com"]
[Source "ChessBase"]
[SourceQuality "1"]
[TimeControl "5400+30"]

{[%evp 8,110,15,32767,15,32767,32767,32767,-4,6,-2,-11,0,-24,-22,-16,-18,-50,-47,-47,-54,-38,-36,-77,-60,32767,-59,-63,-61,-66,-18,-20,32767,32767,0,-16,-18,32767,32767,-14,0,32767,32767,32767,0,-13,-2,32767,-127,32767,32767,32767,32767,32767,32767,32767,32767,-239,32767,32767,32767,32767,-225,-242,-253,-260,-247,32767,32767,-252,-125,32767,-191,-174,-109,-103,0,-187,32767,-245,-229,-226,-224,32767,-338,-332,-352,32767,-410,-489,-468,-475,32767,32767,-653,-744,32767,-1472,-1387,32767,-5497,-29967,32767,-29964,-29977]} 1. d4 {[%emt 0:00:00]} d5 {[%emt 0:00:06]} 2. Bf4 {[%emt 0:00:00]} c5 {[%emt 0:00:39]} 3. e3 {[%emt 0:00:00]} Nf6 {[%emt 0:00:23]} 4. c3 {[%emt 0:01:21]} Nc6 {[%emt 0:00:07]} 5. Nd2 {[%emt 0:00:30] D00: 1 d4 d5: Unusual lines} cxd4 {[%emt 0:00:12]} (5... e6 6. Ngf3 Bd6 7. Bg3 O-O 8. Bb5 a6 9. Bxc6 bxc6 10. Qa4 Rb8 11. Qa3 Bxg3 12. hxg3 cxd4 13. cxd4 a5 14. O-O Qb6 15. b3 Ba6 {1-0 (24) Carlsen,M (2840)-Anand,V (2779) Doha 2016}) 6. exd4 {[%emt 0:00:38]} Bf5 {[%emt 0:00:22]} 7. Ngf3 {[%emt 0:00:47]} e6 {[%emt 0:00:46]} 8. Be2 {[%emt 0:01:36] LiveBook: 10 Games} Bd6 {[%emt 0:05:14]} 9. Bg3 {[%emt 0:02:04]} h6 $146 {[%emt 0:02:49]} (9... O-O 10. O-O Bxg3 11. hxg3 a6 12. Nh4 Bg6 13. Nxg6 hxg6 {1-0 (44) Purtseladze,M (2347)-Gaponenko,I (2411) Doha 2016}) 10. O-O {[%emt 0:00:58]} Bxg3 {[%emt 0:01:07]} 11. hxg3 {[%emt 0:00:48]} O-O {[%emt 0:02:05]} 12. Ne5 {[%emt 0:03:19]} Nxe5 {[%emt 0:03:02]} 13. dxe5 {[%emt 0:01:06]} Nd7 {[%emt 0:00:07]} 14. Nf3 {[%emt 0:01:00]} Qb6 {[%emt 0:08:40]} 15. b3 {[%emt 0:19:34]} Be4 {[%emt 0:10:00]} 16. Re1 {[%emt 0:05:36]} Rac8 {[%emt 0:05:19]} 17. Rc1 {[%emt 0:15:20]} Qa5 {[%emt 0:12:13]} 18. Qd2 {[%emt 0:04:06]} Rfd8 {[%emt 0:01:39]} (18... Bxf3 $17 19. Bxf3 Rc7) 19. Bf1 {[%emt 0:05:43]} a6 {[%emt 0:04:04]} 20. Nd4 {[%emt 0:04:57]} b5 {[%emt 0:09:46]} 21. f3 {[%emt 0:01:32]} Bh7 {[%emt 0:01:37]} 22. f4 {[%emt 0:02:00]} Qb6 {[%emt 0:00:55]} 23. b4 {[%emt 0:03:49]} Qa7 {[%emt 0:02:24]} 24. Qf2 {[%emt 0:03:13]} Rc7 25. g4 {[%emt 0:01:29]} Rdc8 {[%emt 0:04:10]} 26. Qe3 {[%emt 0:02:48]} Be4 {[%emt 0:01:35]} 27. Be2 {[%emt 0:04:53] [#]} Nb6 $1 {[%emt 0:01:57]} 28. Bf3 {[%emt 0:00:39]} Bxf3 {[%emt 0:00:59]} 29. Nxf3 {[%emt 0:09:17]} Na4 {[%emt 0:00:23]} 30. Qxa7 {[%emt 0:00:24]} Rxa7 {[%emt 0:00:04]} 31. f5 {[%emt 0:01:11]} Nxc3 {[%emt 0:00:56]} 32. Nd4 {[%emt 0:01:05]} Rac7 {[%emt 0:01:07]} 33. fxe6 {[%emt 0:01:36]} fxe6 {[%emt 0:00:58]} 34. Kh2 {[%emt 0:00:16]} Nxa2 {[%emt 0:02:35]} 35. Rxc7 {[%emt 0:01:44]} Rxc7 {[%emt 0:00:04]} 36. Nxe6 {[%emt 0:00:06]} Re7 {[%emt 0:00:52]} 37. Nd4 {[%emt 0:00:57]} Nxb4 {[%emt 0:01:30]} 38. e6 {[%emt 0:00:28]} g6 {[%emt 0:01:25]} ({Black should play} 38... Nd3 $19 39. Re2 Nc5) 39. Kg3 {[%emt 0:01:07]} Kg7 {[%emt 0:01:04]} 40. Re3 {[%emt 0:00:50]} Re8 {[%emt 0:05:21]} 41. Rf3 {[%emt 0:00:40]} Re7 {[%emt 0:01:39]} (41... g5 $17 42. Nf5+ Kg6) 42. Re3 {[%emt 0:00:04]} Kf6 $19 {[%emt 0:01:15] ...Rc7 is the strong threat.} 43. Kf4 {[%emt 0:00:48]} (43. Rb3 $142 a5 44. Ra3) 43... a5 {[%emt 0:00:52]} 44. Kg3 {[%emt 0:00:47]} a4 {[%emt 0:02:05]} 45. Nxb5 {[%emt 0:00:33]} Rxe6 {[%emt 0:00:22]} 46. Ra3 {[%emt 0:00:27]} Ra6 {[%emt 0:01:47]} 47. Nc3 {[%emt 0:00:33]} d4 {[%emt 0:00:23]} 48. Ne4+ {[%emt 0:00:36]} Ke5 {[%emt 0:00:51]} 49. Nc5 {[%emt 0:00:05]} Ra5 {[%emt 0:00:59]} 50. Rxa4 {[%emt 0:00:35]} Rxa4 {[%emt 0:00:40]} 51. Nxa4 {[%emt 0:00:01]} Ke4 {[%emt 0:00:21]} 52. Nc5+ {[%emt 0:00:21]} Ke3 {[%emt 0:00:12]} 53. g5 {[%emt 0:00:37]} h5 {[%emt 0:00:21]} 54. Nb3 {[%emt 0:00:44]} d3 {[%emt 0:00:09]} 55. Kh4 {[%emt 0:00:10]} d2 {[%emt 0:00:44]} 56. Nxd2 {[%emt 0:00:06]} Kxd2 {[%emt 0:00:04]} 57. g4 {[%emt 0:00:08]} hxg4 {[%emt 0:00:05]} 58. Kxg4 {[%emt 0:00:03]} Ke3 {[%emt 0:00:06]} 1-0

[Event "EIWCC 2017"]
[Site "Riga"]
[Date "2017.04.19"]
[Round "8"]
[White "Girya, Olga"]
[Black "Zimina, Olga"]
[Result "1/2-1/2"]
[ECO "A35"]
[WhiteElo "2470"]
[BlackElo "2395"]
[Annotator "TA"]
[PlyCount "152"]
[EventDate "2017.??.??"]
[EventType "swiss"]
[EventCountry "LAT"]
[SourceTitle "playchess.com"]
[Source "ChessBase"]
[SourceQuality "1"]
[TimeControl "5400+30"]

{[%evp 10,152,38,28,33,24,61,32767,63,51,54,63,32767,66,65,60,64,71,73,66,79,51,37,34,32767,46,32767,50,74,40,70,32767,32767,8,0,15,18,-9,-16,-14,0,0,109,81,114,32767,32767,32767,32767,32767,32767,32767,32767,32767,32767,32767,-83,32767,32767,32767,32767,32767,32767,32767,32767,32767,32767,32767,32767,32767,32767,32767,32767,32767,32767,32767,-93,32767,32767,32767,32767,32767,-156,-160,-185,-160,32767,-196,-200,32767,-201,-208,-195,-243,-253,-249,-207,-271,-202,-204,-163,-171,-156,32767,-183,-175,-204,-166,-165,32767,32767,-187,-18,32767,-73,32767,32767,32767,-66,-72,32767,32767,32767,32767,32767,32767,32767,-79,-87,32767,-396,32767,-579,-524,-753,-588,-523,-636,-989,-970,-1008,-1262,-2361,-29984,-29986]} 1. e4 {[%emt 0:00:00]} c5 {[%emt 0:00:34]} 2. Nf3 {[%emt 0:00:00]} e6 {[%emt 0:00:43]} 3. d4 {[%emt 0:02:19]} cxd4 {[%emt 0:00:49]} 4. Nxd4 {[%emt 0:00:05]} a6 {[%emt 0:00:33]} 5. c4 {[%emt 0:00:18]} Nf6 {[%emt 0:01:59]} 6. Nc3 {[%emt 0:00:20]} Qc7 {[%emt 0:00:17]} 7. a3 {[%emt 0:01:01]} b6 {[%emt 0:00:56]} 8. Be3 {[%emt 0:01:09]} Bb7 {[%emt 0:00:14] B41: Sicilian: Kan Variation: 5 c4} 9. f3 {[%emt 0:11:24]} Be7 {[%emt 0:02:32]} 10. Be2 {[%emt 0:01:51]} d6 {[%emt 0:00:59]} 11. Rc1 {[%emt 0:08:36]} Nbd7 {[%emt 0:05:54]} 12. O-O {[%emt 0:02:19] LiveBook: 153 Games} O-O {[%emt 0:00:16]} 13. Qe1 $146 {[%emt 0:18:30]} (13. Kh1 Rac8 14. b4 Rfd8 15. Bg1 Qb8 16. Nb3 {1-0 (50) Ponomariov,R (2712)-Wojtaszek,R (2727) Huaian 2016}) 13... Rfe8 {[%emt 0:02:56]} 14. Qf2 {[%emt 0:01:31]} Rac8 {[%emt 0:00:19]} 15. Rfd1 {[%emt 0:04:01]} Qb8 {[%emt 0:00:29]} 16. b4 {[%emt 0:01:33]} Bd8 {[%emt 0:01:28]} 17. Kh1 {[%emt 0:19:23]} Bc7 {[%emt 0:02:11]} 18. Qg1 {[%emt 0:11:54]} Rcd8 {[%emt 0:15:35]} 19. Rd2 {[%emt 0:00:58]} d5 {[%emt 0:02:35]} 20. cxd5 {[%emt 0:01:33]} exd5 {[%emt 0:00:07]} 21. Nxd5 {[%emt 0:00:47]} ({White should play} 21. Bxa6 $16 Bxa6 22. Nc6) 21... Nxd5 {[%emt 0:09:08]} 22. exd5 {[%emt 0:00:04]} Nf6 {[%emt 0:06:14]} 23. Nc6 {[%emt 0:03:23]} Bxc6 $1 {[%emt 0:00:37]} 24. Rxc6 {[%emt 0:00:03]} Rxd5 {[%emt 0:01:44]} 25. Bc4 {[%emt 0:00:24]} Bxh2 {[%emt 0:06:33]} (25... Rxd2 $11 26. Bxd2 b5) 26. Qxh2 {[%emt 0:03:22]} Rh5 {[%emt 0:00:06]} 27. Bxf7+ {[%emt 0:00:08]} Kxf7 {[%emt 0:02:03]} 28. Rxf6+ {[%emt 0:00:04]} Kxf6 {[%emt 0:00:09]} 29. Qxh5 {[%emt 0:00:40]} Rxe3 {[%emt 0:00:12]} 30. Qh4+ {[%emt 0:01:19]} Kg6 {[%emt 0:02:30]} 31. f4 {[%emt 0:05:38]} h6 {[%emt 0:02:17]} 32. f5+ {[%emt 0:00:29]} Kh7 {[%emt 0:00:46]} 33. f6 {[%emt 0:00:39]} Qe5 {[%emt 0:00:44]} 34. Rd1 {[%emt 0:00:13]} Re4 {[%emt 0:02:53]} 35. Qh3 {[%emt 0:00:03]} Qxf6 {[%emt 0:00:28]} 36. Qd3 {[%emt 0:00:53]} Qg6 {[%emt 0:00:16]} 37. Qf3 {[%emt 0:00:49]} b5 {[%emt 0:01:24]} 38. Rd5 {[%emt 0:00:17]} Rg4 {[%emt 0:02:17]} 39. Kh2 {[%emt 0:00:33]} Rh4+ {[%emt 0:02:37]} 40. Kg1 {[%emt 0:00:03]} Rc4 {[%emt 0:00:08]} 41. Kh2 {[%emt 0:00:42]} Rc2 {[%emt 0:00:36]} 42. Kh1 {[%emt 0:00:48]} Ra2 {[%emt 0:00:40]} 43. Rc5 {[%emt 0:00:07]} Ra1+ {[%emt 0:00:30]} 44. Kh2 {[%emt 0:00:05]} Qd6+ {[%emt 0:00:09]} 45. g3 {[%emt 0:00:04]} Ra2+ {[%emt 0:03:06]} 46. Kh3 {[%emt 0:00:14]} Qe6+ {[%emt 0:01:58]} 47. g4 {[%emt 0:00:15]} Qg6 {[%emt 0:00:23]} 48. Rc6 {[%emt 0:00:58] [#]} (48. Rd5 $17) 48... Rxa3 $1 {[%emt 0:00:30]} 49. Qxa3 {[%emt 0:00:09]} Qxc6 {[%emt 0:00:08]} 50. Qd3+ {[%emt 0:01:33]} Kg8 {[%emt 0:01:07]} 51. Qd8+ {[%emt 0:01:01]} Kf7 {[%emt 0:00:15]} 52. Qd4 {[%emt 0:00:05]} Qc4 {[%emt 0:02:56]} 53. Qa7+ {[%emt 0:00:18]} Kg8 {[%emt 0:00:15]} 54. Qxa6 {[%emt 0:00:07]} Qxb4 {[%emt 0:00:37]} 55. Qe6+ {[%emt 0:00:25]} Kf8 {[%emt 0:00:42]} 56. Qc8+ {[%emt 0:01:25]} Ke7 {[%emt 0:00:20]} 57. Qc7+ {[%emt 0:00:14] [#]} Kf6 $1 {[%emt 0:01:58]} 58. Qc6+ {[%emt 0:00:28] [#]} Ke5 $1 {[%emt 0:04:59]} 59. Qc7+ {[%emt 0:00:17]} Kd5 {[%emt 0:01:32]} 60. Qf7+ {[%emt 0:00:50]} Kc5 $2 {[%emt 0:00:58]} (60... Kc6 $19 {aiming for ...Qc3+.} 61. Qxg7 Qa3+ 62. Kh4 Qd6 63. Qc3+ Kd7) 61. Qxg7 {[%emt 0:00:15]} Qf4 {[%emt 0:00:38]} 62. Qe7+ {[%emt 0:00:54]} Kc4 {[%emt 0:00:25]} 63. Qe2+ {[%emt 0:00:16] [#]} Kb4 $1 {[%emt 0:00:21]} 64. Qe1+ {[%emt 0:00:31]} Kb3 {[%emt 0:01:07]} 65. Qd1+ {[%emt 0:00:44]} Kc3 {[%emt 0:01:07]} 66. Qa1+ {[%emt 0:00:09]} Kc4 {[%emt 0:01:35]} 67. Qa2+ {[%emt 0:00:03]} Kc5 {[%emt 0:00:51]} 68. Qc2+ {[%emt 0:00:31] [#]} Kb6 $1 {[%emt 0:00:18]} 69. Qd3 {[%emt 0:00:32]} b4 {[%emt 0:00:35]} 70. Qd8+ {[%emt 0:00:20]} Kc5 {[%emt 0:00:38]} 71. Qa5+ {[%emt 0:00:44]} Kc4 {[%emt 0:00:25]} 72. Qa2+ {[%emt 0:00:02]} Kc3 {[%emt 0:00:44]} 73. Qa1+ {[%emt 0:00:06]} Kd2 {[%emt 0:00:43]} 74. Qb2+ {[%emt 0:01:00]} Kd1 {[%emt 0:00:21]} 75. Qb1+ {[%emt 0:00:21] [#]} Ke2 $1 {[%emt 0:00:13]} 76. Qa1 {[%emt 0:02:18]} Qf1+ {[%emt 0:00:23]} 1/2-1/2

[Event "EIWCC 2017"]
[Site "Riga"]
[Date "2017.04.19"]
[Round "8"]
[White "Galliamova, Alisa"]
[Black "Arabidze, Meri"]
[Result "1-0"]
[ECO "D00"]
[WhiteElo "2444"]
[BlackElo "2373"]
[Annotator "TA"]
[PlyCount "119"]
[EventDate "2017.??.??"]
[EventType "swiss"]
[EventCountry "LAT"]
[SourceTitle "playchess.com"]
[Source "ChessBase"]
[SourceQuality "1"]
[TimeControl "40/5400+30:1800+30"]

1. e4 {[%emt 0:00:00]} c5 {[%emt 0:00:03]} 2. Nf3 {[%emt 0:00:00]} d6 {[%emt 0:00:04]} 3. d4 {[%emt 0:00:00]} cxd4 {[%emt 0:00:03]} 4. Nxd4 {[%emt 0:00:03]} Nf6 {[%emt 0:00:04]} 5. Nc3 {[%emt 0:00:09]} a6 {[%emt 0:00:03]} 6. Bg5 {[%emt 0:00:44]} Nbd7 {[%emt 0:00:15]} 7. Qe2 {[%emt 0:00:32] B94: Sicilian Najdorf: 6 Bg5 Nbd7} (7. Bc4 Qb6 8. Bb3 e6 9. Qd2 Be7 10. O-O-O Nc5 11. Rhe1 h6 12. Bh4 O-O 13. g3 Qc7 14. f4 b5 15. e5 dxe5 16. fxe5 {0-1 (51) Dominguez Perez,L (2739)-Wojtaszek,R (2749) Doha 2016}) 7... e5 {[%emt 0:12:50]} 8. Nf5 {[%emt 0:01:54]} h6 {[%emt 0:00:16] LiveBook: 7 Games} 9. Bh4 {[%emt 0:03:15]} g6 {[%emt 0:01:34]} 10. Ne3 {[%emt 0:00:43]} Be7 {[%emt 0:02:07]} 11. O-O-O {[%emt 0:12:31]} b5 {[%emt 0:08:23]} 12. a3 {[%emt 0:05:32]} Bb7 {[%emt 0:03:29]} 13. f3 {[%emt 0:00:44]} Rc8 {[%emt 0:02:51]} 14. Bxf6 $146 {[%emt 0:10:40]} (14. Qd2 Qb6 {0-1 (27) Hansen,M (2310)-Ziska,H (2523) Denmark 2015}) 14... Nxf6 {[%emt 0:02:16]} 15. Ncd5 {[%emt 0:00:57]} Nxd5 {[%emt 0:03:47]} 16. Nxd5 {[%emt 0:00:25]} Bxd5 {[%emt 0:06:45]} 17. Rxd5 {[%emt 0:00:18]} Rc5 {[%emt 0:00:53]} 18. Qd3 {[%emt 0:02:17]} O-O {[%emt 0:02:28]} 19. Be2 {[%emt 0:01:36]} Qc7 {[%emt 0:01:49]} 20. Kb1 {[%emt 0:00:57]} Rb8 {[%emt 0:07:40]} 21. Rd1 {[%emt 0:05:17]} a5 {[%emt 0:06:56]} 22. g3 {[%emt 0:04:40]} b4 {[%emt 0:01:34]} 23. a4 {[%emt 0:02:08]} Rc8 {[%emt 0:04:02]} 24. Rxc5 {[%emt 0:05:34]} Qxc5 {[%emt 0:00:03]} 25. Bf1 {[%emt 0:09:26]} Bg5 {[%emt 0:03:53]} 26. Qe2 {[%emt 0:04:13]} Qc6 {[%emt 0:02:31]} 27. b3 {[%emt 0:01:56]} Be3 {[%emt 0:04:35]} 28. Rd5 {[%emt 0:03:17]} Bd4 {[%emt 0:02:34]} 29. Qc4 {[%emt 0:04:09]} Qb7 {[%emt 0:03:17]} 30. Qb5 {[%emt 0:01:12]} Qc7 {[%emt 0:04:44]} 31. Qd3 {[%emt 0:01:56]} Qc3 {[%emt 0:06:34]} 32. Qxc3 {[%emt 0:00:19]} Rxc3 {[%emt 0:00:09]} 33. Bd3 {[%emt 0:00:20]} Bc5 {[%emt 0:00:02]} 34. Kc1 {[%emt 0:02:22]} Kf8 {[%emt 0:00:16]} 35. Kd1 {[%emt 0:01:34]} Ke7 {[%emt 0:00:05]} 36. Kd2 {[%emt 0:05:30]} Ke6 {[%emt 0:01:54]} 37. Bc4 {[%emt 0:05:08]} Ke7 {[%emt 0:00:19]} 38. Rd3 {[%emt 0:01:05]} Rxd3+ {[%emt 0:01:37]} 39. Kxd3 {[%emt 0:00:33]} f5 {[%emt 0:02:47]} 40. g4 {[%emt 0:00:00]} Kf6 {[%emt 0:03:02]} 41. gxf5 {[%emt 0:05:25]} gxf5 {[%emt 0:00:06]} 42. Bb5 {[%emt 0:00:13]} Kg5 {[%emt 0:09:21]} 43. Bd7 {[%emt 0:00:37]} fxe4+ {[%emt 0:02:15]} 44. fxe4 {[%emt 0:00:14]} Kf4 {[%emt 0:01:17]} 45. Be6 {[%emt 0:01:41]} Bg1 {[%emt 0:01:35]} 46. h3 {[%emt 0:00:19]} h5 {[%emt 0:00:34]} 47. Bf7 {[%emt 0:00:30]} h4 {[%emt 0:01:56]} 48. Bg6 {[%emt 0:00:17]} Bc5 {[%emt 0:01:27]} 49. Kc4 {[%emt 0:00:54]} Ke3 {[%emt 0:00:11]} 50. Kb5 {[%emt 0:00:37]} Kd2 {[%emt 0:00:08]} 51. Kxa5 {[%emt 0:00:15]} Kxc2 {[%emt 0:00:06]} 52. Bf7 {[%emt 0:00:09]} Kd3 {[%emt 0:01:33]} 53. Bd5 {[%emt 0:00:12]} Ke3 {[%emt 0:01:16]} 54. Kb5 {[%emt 0:00:10]} Kf3 {[%emt 0:01:30]} 55. Kc4 {[%emt 0:01:06]} Ke3 {[%emt 0:03:05]} 56. a5 {[%emt 0:00:12]} Kf4 {[%emt 0:01:30]} 57. a6 {[%emt 0:00:18]} Kg3 {[%emt 0:00:13]} 58. Be6 {[%emt 0:00:14]} Kf4 {[%emt 0:00:06]} 59. Bf5 {[%emt 0:00:26]} Kg5 {[%emt 0:02:03]} 60. Kd5 $18 {[%emt 0:03:17]} 1-0

[Event "EIWCC 2017"]
[Site "Riga"]
[Date "2017.04.19"]
[Round "8"]
[White "Melia, Salome"]
[Black "Cosma, Elena-Luminita"]
[Result "1-0"]
[ECO "C09"]
[WhiteElo "2400"]
[BlackElo "2316"]
[Annotator "ChessBase"]
[PlyCount "125"]
[EventDate "2017.??.??"]
[EventType "swiss"]
[EventCountry "LAT"]
[SourceTitle "playchess.com"]
[Source "ChessBase"]
[SourceQuality "1"]
[TimeControl "40/5400+30:1800+30"]

1. Nf3 {[%emt 0:00:00]} Nf6 {[%emt 0:00:25]} 2. g3 {[%emt 0:00:00]} b6 {[%emt 0:00:20]} 3. Bg2 {[%emt 0:00:45]} Bb7 {[%emt 0:00:05]} 4. d4 {[%emt 0:00:17]} e6 {[%emt 0:04:20]} 5. O-O {[%emt 0:00:13]} Be7 {[%emt 0:00:22]} 6. c4 {[%emt 0:01:43]} O-O {[%emt 0:00:12]} 7. Qc2 {[%emt 0:02:34]} d6 {[%emt 0:03:39]} 8. Nc3 {[%emt 0:03:00]} Nbd7 {[%emt 0:01:07]} 9. Rd1 {[%emt 0:02:19]} c5 {[%emt 0:02:02]} 10. e4 {[%emt 0:05:52]} cxd4 {[%emt 0:03:12]} 11. Nxd4 {[%emt 0:01:04]} Qc8 {[%emt 0:05:02]} 12. Ndb5 {[%emt 0:19:31]} Ne5 {[%emt 0:28:15]} 13. b3 {[%emt 0:02:25]} Rd8 {[%emt 0:00:16]} 14. Ba3 {[%emt 0:03:28]} Ne8 {[%emt 0:06:09]} 15. Rac1 {[%emt 0:04:52]} a6 {[%emt 0:04:17]} 16. Nd4 {[%emt 0:00:10]} Qc7 {[%emt 0:00:21]} 17. f4 {[%emt 0:03:42]} Nc6 {[%emt 0:03:01]} 18. Nf3 {[%emt 0:05:03]} b5 {[%emt 0:06:42]} 19. cxb5 {[%emt 0:06:04]} axb5 {[%emt 0:00:02]} 20. Bb2 {[%emt 0:00:25]} Nf6 {[%emt 0:11:14]} 21. Kh1 {[%emt 0:08:03]} Qb6 {[%emt 0:01:22]} 22. h3 {[%emt 0:06:00]} Nb4 {[%emt 0:00:39]} 23. Qe2 {[%emt 0:03:06]} Nxa2 {[%emt 0:01:23]} 24. Nxa2 {[%emt 0:01:42]} Rxa2 {[%emt 0:00:01]} 25. Bd4 {[%emt 0:04:35]} Qa6 {[%emt 0:00:41]} 26. Nd2 {[%emt 0:00:19]} h6 {[%emt 0:09:10]} 27. Rc7 {[%emt 0:03:59]} Rd7 {[%emt 0:01:01]} 28. Rcc1 {[%emt 0:01:44]} d5 {[%emt 0:03:09]} 29. Bxf6 {[%emt 0:05:06]} Bxf6 {[%emt 0:00:08]} 30. e5 {[%emt 0:00:12]} Be7 {[%emt 0:00:40]} 31. Qd3 {[%emt 0:01:02]} Qb6 {[%emt 0:02:15]} 32. Ra1 {[%emt 0:02:25]} Rxa1 {[%emt 0:00:13]} 33. Rxa1 {[%emt 0:00:05]} Rc7 {[%emt 0:00:22]} 34. f5 {[%emt 0:02:51]} exf5 {[%emt 0:02:16]} 35. Qxf5 {[%emt 0:00:51]} Bc8 {[%emt 0:02:46]} 36. Qd3 {[%emt 0:01:12]} d4 {[%emt 0:00:40]} 37. Kh2 {[%emt 0:00:56]} Bf8 {[%emt 0:00:35]} 38. Nf3 {[%emt 0:00:41]} Rd7 {[%emt 0:00:31]} 39. Rd1 {[%emt 0:00:31]} Bb7 {[%emt 0:00:22]} 40. Qf5 {[%emt 0:00:00]} Rd8 {[%emt 0:00:17]} 41. Rd3 {[%emt 0:06:28]} Bb4 {[%emt 0:05:16]} 42. Qg4 {[%emt 0:02:03]} Bc3 {[%emt 0:06:02]} 43. Nh4 {[%emt 0:01:04]} Bc8 {[%emt 0:00:54]} 44. Nf5 {[%emt 0:10:47]} Bxf5 {[%emt 0:00:06]} 45. Qxf5 {[%emt 0:00:04]} b4 {[%emt 0:08:47]} 46. Be4 {[%emt 0:00:24]} g6 {[%emt 0:00:29]} 47. Qg4 {[%emt 0:01:33]} Re8 {[%emt 0:01:29]} 48. Qf4 {[%emt 0:04:38]} Qe6 {[%emt 0:08:50]} 49. Rf3 {[%emt 0:01:07]} Re7 {[%emt 0:00:59]} 50. Qxh6 {[%emt 0:03:43]} Qxe5 {[%emt 0:01:19]} 51. Bd3 {[%emt 0:02:00]} Qd5 {[%emt 0:01:33]} 52. Qf4 {[%emt 0:02:37]} Qxb3 {[%emt 0:00:26]} 53. h4 {[%emt 0:00:38]} Qe6 {[%emt 0:00:20]} 54. h5 {[%emt 0:00:29]} Qe5 {[%emt 0:00:28]} 55. Qxe5 {[%emt 0:00:32]} Rxe5 {[%emt 0:00:01]} 56. hxg6 {[%emt 0:00:08]} fxg6 {[%emt 0:00:02]} 57. Bxg6 {[%emt 0:00:40]} Kg7 {[%emt 0:01:47]} 58. Bf7 {[%emt 0:00:39]} Re2+ {[%emt 0:00:34]} 59. Kh3 {[%emt 0:00:11]} Rb2 {[%emt 0:00:26]} 60. Bc4 {[%emt 0:00:44]} Rb1 {[%emt 0:00:03]} 61. Rf7+ {[%emt 0:00:19]} Kh6 {[%emt 0:00:29]} 62. Kg4 {[%emt 0:00:43]} Rg1 {[%emt 0:00:53]} 63. Bd3 {[%emt 0:00:22]} 1-0

[Event "EIWCC 2017"]
[Site "Riga"]
[Date "2017.04.19"]
[Round "8"]
[White "Houska, Jovanka"]
[Black "Ambartsumova, Karina"]
[Result "0-1"]
[ECO "E62"]
[WhiteElo "2397"]
[BlackElo "2282"]
[Annotator "NA"]
[PlyCount "74"]
[EventDate "2017.??.??"]
[EventType "swiss"]
[EventCountry "LAT"]
[SourceTitle "playchess.com"]
[Source "ChessBase"]
[SourceQuality "1"]
[TimeControl "40/5400+30:1800+30"]

{[%evp 10,48,29,33,48,41,47,26,25,24,30,0,38,25,43,26,16,-16,-7,32767,-21,-23,-22,-20,0,-5,-3,-9,0,-20,0,-13,0,-20,-17,0,0,-39,-53,32767,-29]} 1. d4 {[%emt 0:00:00]} Nf6 {[%emt 0:00:26]} 2. Nf3 {[%emt 0:00:00]} g6 {[%emt 0:00:33]} 3. c4 {[%emt 0:00:16]} Bg7 {[%emt 0:00:37]} 4. g3 {[%emt 0:00:05]} O-O {[%emt 0:00:31]} 5. Bg2 {[%emt 0:00:02]} d6 {[%emt 0:00:51]} 6. O-O {[%emt 0:00:06]} Nc6 {[%emt 0:00:36]} 7. Nc3 {[%emt 0:00:06]} Bf5 {[%emt 0:00:33] LiveBook: 1228 Games} 8. Be3 {[%emt 0:04:34] E62: King's Indian: Fianchetto: 6...c6 and Panno Variation (6...Nc6) without ...a6} (8. Bg5 Ne4 9. Nxe4 Bxe4 10. d5 Na5 11. b3 c5 12. Rc1 Re8 13. Qd2 a6 14. Bh3 Bxf3 15. exf3 b5 16. Rfe1 bxc4 17. bxc4 {1-0 (62) Aronian,L (2785)-Fressinet,L (2672) Doha 2016}) 8... e5 {[%emt 0:08:37]} 9. d5 {[%emt 0:08:36]} Ne7 {[%emt 0:02:46]} 10. Qc1 $146 {[%emt 0:08:13]} (10. Ng5 Nd7 11. Nge4 b6 12. Qd2 Nc5 13. Nxc5 bxc5 14. Bh6 Qd7 15. Bxg7 Kxg7 {1-0 (38) Kovacs,I (1816)-Schneberger,M Szekesfehervar 2014}) 10... Qd7 {[%emt 0:14:51]} 11. Ne1 {[%emt 0:12:53]} c6 {[%emt 0:22:00]} 12. Bg5 {[%emt 0:05:48]} cxd5 {[%emt 0:06:19]} 13. Bxf6 {[%emt 0:01:18]} Bxf6 {[%emt 0:00:03]} 14. Nxd5 {[%emt 0:00:06]} Nxd5 {[%emt 0:00:21]} 15. Bxd5 {[%emt 0:00:05]} Rac8 {[%emt 0:02:06]} 16. Qd2 {[%emt 0:03:22]} b5 {[%emt 0:03:15]} 17. cxb5 {[%emt 0:04:21]} Qxb5 {[%emt 0:00:39]} 18. e4 {[%emt 0:01:10]} Bd7 {[%emt 0:14:19]} 19. Nd3 {[%emt 0:05:58]} Be6 {[%emt 0:03:28]} 20. a4 {[%emt 0:09:12]} Qb6 {[%emt 0:02:05]} 21. Bxe6 {[%emt 0:11:25]} fxe6 {[%emt 0:00:01]} 22. b4 {[%emt 0:01:46]} Qd4 {[%emt 0:01:41]} 23. Rfe1 {[%emt 0:00:32]} Rc3 {[%emt 0:03:29]} 24. Rad1 {[%emt 0:00:41]} Be7 $11 {[%emt 0:03:48]} 25. Kg2 {[%emt 0:05:03]} Kg7 {[%emt 0:03:10]} 26. h4 {[%emt 0:00:35]} Rxd3 {[%emt 0:02:52]} 27. Qxd3 {[%emt 0:00:56]} Qxf2+ {[%emt 0:00:02]} 28. Kh1 {[%emt 0:02:53]} Rf3 {[%emt 0:00:04]} 29. Qe2 {[%emt 0:00:16]} Qxg3 {[%emt 0:00:10]} 30. Qh2 {[%emt 0:00:04]} Qg4 {[%emt 0:00:21]} 31. Rg1 {[%emt 0:04:24]} Qxe4 {[%emt 0:00:03]} 32. Rg2 {[%emt 0:00:03]} Bxh4 {[%emt 0:03:37]} 33. Rc1 {[%emt 0:02:04]} Bd8 {[%emt 0:01:53]} 34. a5 {[%emt 0:01:18]} Qe3 {[%emt 0:00:13]} 35. Qg1 {[%emt 0:00:26]} Rh3+ {[%emt 0:00:18]} 36. Rh2 {[%emt 0:00:04]} Qf3+ {[%emt 0:00:23]} 37. Qg2 {[%emt 0:00:30]} Rxh2+ {[%emt 0:00:07]} 0-1